fUST/lending_fUST_20251020
["ID","MTS","AMOUNT","RATE_DAILY","PERIOD"]
[391846523,1760910632066,-301.63531893,0.00024173,2]
[391846768,1760910637551,-309.72408568,0.00024173,2]
[391846769,1760910637563,-140501.67907286,0.00024173,2]
[391846770,1760910637573,-859.04,0.00024173,2]
[391846822,1760910642861,-10537.99009122,0.00024173,2]
[391846824,1760910642875,-55309.24198984,0.00024173,2]
[391846826,1760910642884,-25868.87,0.000242,7]
[391846828,1760910642894,-172.5,0.00024762,2]
[391846830,1760910642903,-317.16840397,0.0002514,2]
[391846832,1760910642912,-195.0,0.00025362,2]
[391846834,1760910642921,-3809.02,0.00025533,3]
[391846836,1760910642931,-1904.52,0.00025533,3]
[391846838,1760910642941,-952.26,0.00025533,3]
[391846840,1760910642950,-476.12,0.00025533,3]
[391846842,1760910642960,-217.5,0.00025962,2]
[391846844,1760910642969,-325.81907449,0.00026357,2]
[391846846,1760910642978,-240.0,0.00026562,2]
[391846848,1760910642988,-744.316696,0.00026676,2]
[391846850,1760910642997,-159.63,0.00027106,2]
[391846852,1760910643007,-262.5,0.00027162,2]
[391846853,1760910643018,-285.0,0.00027762,2]
[391846854,1760910643028,-169.475,0.00028029,18]
[391846855,1760910643037,-1123.49,0.000282,2]
[391846856,1760910643046,-2353.6,0.000282,2]
[391846857,1760910643055,-200.95035708,0.00028362,2]
[391846858,1760910643065,-319.27,0.00028397,2]
[391846859,1760910643074,-325.81907449,0.00028614,2]
[391846860,1760910643083,-500.0,0.00028773,2]
[391846861,1760910643092,-533.88981491,0.00028773,2]
[391846862,1760910643102,-222.38489232,0.00029161,2]
[391846863,1760910643112,-553.64373807,0.00029321,2]
[391846864,1760910643121,-478.9,0.00029688,2]
[391846865,1760910643130,-574.12855637,0.00029869,2]
[391846866,1760910643139,-434.88,0.00030027,2]
[391846867,1760910643148,-500.0,0.00030136,120]
[391846868,1760910643157,-500.0,0.00030137,2]
[391846869,1760910643167,-500.0,0.00030137,2]
[391846870,1760910643177,-500.0,0.00030137,2]
[391846871,1760910643186,-500.0,0.00030137,2]
[391846872,1760910643195,-500.0,0.00030137,2]
[391846873,1760910643204,-63.53218273,0.00030137,2]
[391846879,1760910691515,7795.39727268,0.00024073,2]
[391846880,1760910691538,10000.01,0.00024073,2]
[391846881,1760910691562,10000.01,0.00024073,2]
[391846882,1760910691585,10000.01,0.00024073,2]
[391846883,1760910691609,10000.01,0.00024073,2]
[391846884,1760910691634,10000.01,0.00024073,2]
[391846885,1760910691657,10000.01,0.00024073,2]
[391846886,1760910691679,10000.01,0.00024073,2]
[391846887,1760910691702,10000.01,0.00024073,2]
[391846888,1760910691724,10000.01,0.00024073,2]
[391846889,1760910693559,-703.02076646,0.00024073,2]
[391846890,1760910696577,-241.48477101,0.00024073,2]
[391846891,1760910698219,-178.76360458,0.00024073,2]
[391846892,1760910699789,-445.13278348,0.00024073,2]
[391846893,1760910702424,-321.76,0.00024073,2]
[391846894,1760910704174,-152.53881307,0.00024073,2]
[391846895,1760910709764,168.34280535,0.0002401,2]
[391846896,1760910710486,-262.06059463,0.00024063,10]
[391846897,1760910711966,-23.35940537,0.00024063,10]
[391846898,1760910711988,-167.76006565,0.00024073,2]
[391846899,1760910713587,-178.24,0.00024073,2]
[391846900,1760910715130,-319.7481198,0.00024073,2]
[391846901,1760910716820,-196.0,0.00024073,2]
[391846902,1760910717184,237.85,0.00024063,10]
[391846903,1760910719209,-238.34544461,0.00024073,2]
[391846904,1760910721343,-167.93338945,0.00024073,2]
[391846905,1760910722269,300.0,0.00024072,2]
[391846906,1760910722929,-151.02389613,0.00024073,2]
[391846907,1760910726362,-167.12842416,0.00024073,2]
[391846908,1760910729063,-186.57375108,0.00024073,2]
[391846909,1760910729895,291.85,0.00024063,10]
[391846911,1760910730688,-300.0,0.00024073,2]
[391846913,1760910732238,-201.09266393,0.00024073,2]
[391846914,1760910733762,-300.0,0.00024073,2]
[391846916,1760910737654,-200.97970536,0.00024073,2]
[391846917,1760910739869,-184.12871426,0.00024073,2]
[391846918,1760910741386,-174.61940654,0.00024073,2]
[391846919,1760910742690,243.21,0.00024063,10]
[391846920,1760910743855,-201.09418565,0.00024073,2]
[391846921,1760910746030,-165.96,0.00024073,2]
[391846922,1760910748387,-300.0,0.00024073,2]
[391846923,1760910749838,-365.40927265,0.00024073,2]
[391846924,1760910752610,216.83733851,0.00024072,2]
[391846925,1760910752723,269.71107165,0.00024072,2]
[391846926,1760910753292,588.56804415,0.00024072,2]
[391846927,1760910753321,500.0,0.00024072,2]
[391846928,1760910753350,500.0,0.00024072,2]
[391846929,1760910753379,500.0,0.00024072,2]
[391846930,1760910753408,500.0,0.00024072,2]
[391846931,1760910753436,636.77824412,0.00024072,2]
[391846932,1760910753463,542.56496392,0.00024072,2]
[391846933,1760910753493,500.0,0.00024072,2]
[391846934,1760910753527,500.0,0.00024072,2]
[391846935,1760910753557,500.0,0.00024072,2]
[391846936,1760910753587,500.0,0.00024072,2]
[391846937,1760910753619,500.0,0.00024072,2]
[391846938,1760910753651,500.0,0.00024072,2]
[391846939,1760910753683,540.54227804,0.00024072,2]
[391846940,1760910753710,426.25707524,0.00024072,2]
[391846941,1760910753745,500.0,0.00024072,2]
[391846942,1760910753773,205.84098437,0.00024072,2]
[391846943,1760910753796,294.15901563,0.00024072,2]
[391846944,1760910753823,443.8141521,0.00024072,2]
[391846945,1760910753849,627.40719569,0.00024072,2]
[391846946,1760910753877,500.0,0.00024072,2]
[391846947,1760910753917,500.0,0.00024072,2]
[391846948,1760910753945,500.0,0.00024072,2]
[391846949,1760910753983,500.0,0.00024072,2]
[391846950,1760910754024,500.0,0.00024072,2]
[391846951,1760910754057,500.0,0.00024072,2]
[391846952,1760910754091,500.0,0.00024072,2]
[391846953,1760910754129,500.0,0.00024072,2]
[391846954,1760910754165,500.0,0.00024072,2]
[391846955,1760910754319,500.0,0.00024072,2]
[391846956,1760910754352,500.0,0.00024072,2]
[391846957,1760910754381,500.0,0.00024072,2]
[391846958,1760910754414,500.0,0.00024072,2]
[391846959,1760910755278,202.67,0.00024063,10]
[391846960,1760910757763,165.96,0.00024063,3]
[391846961,1760910765546,500.0,0.00024072,2]
[391846962,1760910765574,500.0,0.00024072,2]
[391846963,1760910765614,500.0,0.00024072,2]
[391846964,1760910765647,265.99963658,0.00024072,2]
[391846965,1760910765675,234.00036342,0.00024072,2]
[391846966,1760910765713,500.0,0.00024072,2]
[391846967,1760910765744,500.0,0.00024072,2]
[391846968,1760910765848,168.89,0.00024063,10]
[391846969,1760910765927,500.0,0.00024072,2]
[391846970,1760910765990,500.0,0.00024072,2]
[391846971,1760910767418,150.0,0.0001928,2]
[391846972,1760910777662,844.49,0.00024063,10]
[391846973,1760910782260,300.0,0.00024072,2]
[391846974,1760910790004,203.6369216,0.00024,2]
[391846975,1760910798197,230.41588053,0.00024072,2]
[391846976,1760910811957,4626.96904809,0.00024073,2]
[391846977,1760910840511,-4344.17729763,0.00024073,2]
[391846978,1760910840579,-10000.01,0.00024073,2]
[391846979,1760910843220,-300.0,0.00024072,2]
[391846980,1760910869957,718.04,0.00021718,2]
[391846981,1760910870372,1436.07,0.00022752,2]
[391846982,1760910870853,2154.11,0.00023786,2]
[391846983,1760910886513,999.53294979,0.00024,2]
[391846984,1760910889660,184.34773327,0.00024072,2]
[391846985,1760910889690,500.0,0.00024072,2]
[391846986,1760910889717,500.0,0.00024072,2]
[391846987,1760910889748,360.98258335,0.00024072,2]
[391846988,1760910889895,352.8118533,0.00024072,2]
[391846989,1760910889926,417.5764153,0.00024072,2]
[391846990,1760910889953,500.0,0.00024072,2]
[391846991,1760910890002,500.0,0.00024072,2]
[391846992,1760910900413,776.53846499,0.00024,2]
[391846993,1760910900435,10000.01,0.00024,2]
[391846994,1760910900457,4866.49869489,0.00024,2]
[391846995,1760910901360,300.0,0.00024072,2]
[391846996,1760910901876,300.0,0.00024072,2]
[391846997,1760910901949,300.0,0.00024072,2]
[391846998,1760910902253,300.0,0.00024072,2]
[391846999,1760910902459,300.0,0.00024072,2]
[391847000,1760910904237,1200.0,0.00024072,2]
[391847001,1760910906429,500.0,0.00024072,2]
[391847002,1760910906462,500.0,0.00024072,2]
[391847003,1760910906493,381.07571271,0.00024072,2]
[391847004,1760910906524,500.0,0.00024072,2]
[391847005,1760910906759,500.0,0.00024072,2]
[391847006,1760910906838,52.4355924,0.00024072,2]
[391847007,1760910906864,447.5644076,0.00024072,2]
[391847008,1760910907122,300.0,0.00024072,2]
[391847009,1760910907199,500.0,0.00024072,2]
[391847010,1760910907563,500.0,0.00024072,2]
[391847011,1760910907832,500.0,0.00024072,2]
[391847012,1760910908158,500.0,0.00024072,2]
[391847013,1760910908533,500.0,0.00024072,2]
[391847014,1760910908849,500.0,0.00024072,2]
[391847015,1760910909164,500.0,0.00024072,2]
[391847016,1760910909502,500.0,0.00024072,2]
[391847017,1760910909828,500.0,0.00024072,2]
[391847018,1760910910174,500.0,0.00024072,2]
[391847019,1760910910486,500.0,0.00024072,2]
[391847020,1760910910799,500.0,0.00024072,2]
[391847021,1760910911111,500.0,0.00024072,2]
[391847022,1760910911534,500.0,0.00024072,2]
[391847023,1760910911569,500.0,0.00024072,2]
[391847024,1760910911647,500.0,0.00024072,2]
[391847025,1760910911689,255.97669806,0.00024072,2]
[391847026,1760910917037,164.06920077,0.00024072,2]
[391847027,1760910917093,500.0,0.00024072,2]
[391847028,1760910917595,332.39969357,0.00024072,2]
[391847029,1760910917619,167.60030643,0.00024072,2]
[391847030,1760910927040,500.0,0.00024072,2]
[391847031,1760910927073,500.0,0.00024072,2]
[391847032,1760910927109,500.0,0.00024072,2]
[391847033,1760910927146,500.0,0.00024072,2]
[391847034,1760910927284,500.0,0.00024072,2]
[391847035,1760910927323,500.0,0.00024072,2]
[391847036,1760910927353,500.0,0.00024072,2]
[391847037,1760910927390,500.0,0.00024072,2]
[391847038,1760910927419,500.0,0.00024072,2]
[391847039,1760910927450,500.0,0.00024072,2]
[391847040,1760910927480,500.0,0.00024072,2]
[391847041,1760910927515,500.0,0.00024072,2]
[391847042,1760910927546,450.0,0.00024072,2]
[391847043,1760910927580,594.29679951,0.00024072,2]
[391847044,1760910927625,500.0,0.00024072,2]
[391847045,1760910927658,500.0,0.00024072,2]
[391847046,1760910929111,500.0,0.00024072,2]
[391847047,1760910938280,500.0,0.00024072,2]
[391847048,1760910949901,678.48,0.00021729,2]
[391847049,1760910950334,109.63289406,0.00022764,2]
[391847050,1760910950362,1247.32710594,0.00022764,2]
[391847051,1760910950747,2035.43,0.00023799,2]
[391847052,1760910951454,500.0,0.00024072,2]
[391847053,1760910959549,271.54183361,0.00024072,2]
[391847055,1760910962472,300.0,0.00024072,2]
[391847062,1760910969302,501.78247587,0.00024072,2]
[391847072,1760910980515,363.36537186,0.00023973,2]
[391847073,1760911022203,300.0,0.00024072,2]
[391847074,1760911031068,626.67,0.00021438,2]
[391847075,1760911031492,1253.33,0.00022458,2]
[391847076,1760911031907,1880.0,0.00023479,2]
[391847077,1760911056628,720.56321272,0.00024072,2]
[391847078,1760911056652,479.43678728,0.00024072,2]
[391847079,1760911082497,300.0,0.00024072,2]
[391847080,1760911110582,578.81,0.00021501,2]
[391847081,1760911111000,1157.63,0.00022525,2]
[391847082,1760911111408,1736.44,0.00023549,2]
[391847083,1760911142173,300.0,0.00024072,2]
[391847084,1760911170661,317.94470043,0.00023973,2]
[391847085,1760911190055,534.61,0.00021518,2]
[391847086,1760911190481,1069.22,0.00022542,2]
[391847087,1760911190970,1603.84,0.00023567,2]
[391847088,1760911201231,300.0,0.00024072,2]
[391847089,1760911201975,300.0,0.00024072,2]
[391847090,1760911202006,300.0,0.00024072,2]
[391847091,1760911202506,300.0,0.00024072,2]
[391847092,1760911204975,722.07851229,0.00024072,2]
[391847093,1760911205000,477.92148771,0.00024072,2]
[391847094,1760911209878,151.0,0.00024073,2]
[391847095,1760911210464,151.0,0.00024073,2]
[391847096,1760911211059,151.0,0.00024073,2]
[391847097,1760911211668,151.0,0.00024073,2]
[391847098,1760911212291,151.0,0.00024073,2]
[391847099,1760911212915,151.0,0.00024073,2]
[391847100,1760911213539,151.0,0.00024073,2]
[391847101,1760911214128,500.0,0.00024072,2]
[391847102,1760911214163,267.29546985,0.00024073,2]
[391847103,1760911214217,317.7729972,0.00024072,2]
[391847104,1760911215134,417.15472785,0.00024073,2]
[391847105,1760911220652,151.43760942,0.00024073,2]
[391847106,1760911225199,-7453.08326641,0.00024073,2]
[391847107,1760911227377,-10000.01,0.00024073,2]
[391847108,1760911227537,-10000.01,0.00024073,2]
[391847109,1760911227619,-10000.01,0.00024073,2]
[391847110,1760911227727,-10000.01,0.00024073,2]
[391847111,1760911237446,417.15472785,0.00024,3]
[391847112,1760911240689,9582.85527215,0.00023973,2]
[391847113,1760911240713,2931.58245573,0.00023973,2]
[391847114,1760911242935,417.15472785,0.00024,3]
[391847115,1760911260658,-402.86590842,0.00024073,2]
[391847116,1760911260778,-5859.82981901,0.00024073,2]
[391847117,1760911260856,-10000.01,0.00024073,2]
[391847118,1760911260991,-10000.01,0.00024073,2]
[391847120,1760911263576,-300.0,0.00024072,2]
[391847121,1760911263615,-9400.01,0.00024073,2]
[391847122,1760911269817,-160.0,0.00024073,2]
[391847123,1760911269854,-9680.01,0.00024073,2]
[391847124,1760911270102,-10000.01,0.00024073,2]
[391847125,1760911270231,-10000.01,0.00024073,2]
[391847126,1760911271164,493.79,0.00021443,2]
[391847127,1760911271566,987.57,0.00022464,2]
[391847128,1760911272005,1481.36,0.00023485,2]
[391847129,1760911272801,3832.74362636,0.0002401,2]
[391847130,1760911272844,1167.25637364,0.0002401,2]
[391847131,1760911284689,-160.0,0.00024073,2]
[391847132,1760911284778,-1717.29,0.00024073,2]
[391847133,1760911284815,-10000.01,0.00024073,2]
[391847134,1760911284986,-10000.01,0.00024073,2]
[391847135,1760911285113,-10000.01,0.00024073,2]
[391847136,1760911287831,-243.0,0.00024072,2]
[391847137,1760911287863,-243.0,0.00024072,2]
[391847138,1760911287895,-289.11940033,0.00024072,2]
[391847139,1760911287926,-400.00831529,0.00024072,2]
[391847140,1760911296359,5000.0,0.00024073,2]
[391847141,1760911304344,2649.75456876,0.00024073,2]
[391847142,1760911304369,1699.74082321,0.00024073,2]
[391847143,1760911311158,500.0,0.00024072,2]
[391847144,1760911311190,500.0,0.00024072,2]
[391847145,1760911311222,481.16745673,0.00024072,2]
[391847146,1760911311255,500.0,0.00024072,2]
[391847147,1760911311608,500.0,0.00024072,2]
[391847148,1760911311644,500.0,0.00024072,2]
[391847149,1760911311675,500.0,0.00024072,2]
[391847150,1760911311773,500.0,0.00024072,2]
[391847151,1760911311804,500.0,0.00024072,2]
[391847152,1760911311832,500.0,0.00024072,2]
[391847153,1760911312107,500.0,0.00024072,2]
[391847154,1760911312143,500.0,0.00024072,2]
[391847155,1760911312428,500.0,0.00024072,2]
[391847156,1760911312457,610.00748375,0.00024072,2]
[391847157,1760911312709,500.0,0.00024072,2]
[391847158,1760911312757,396.92950717,0.00024072,2]
[391847159,1760911320151,312.16472914,0.00024073,2]
[391847160,1760911320179,4687.83527086,0.00024073,2]
[391847161,1760911322306,300.0,0.00024072,2]
[391847162,1760911322879,230.24020628,0.00024072,2]
[391847163,1760911325856,500.0,0.00024072,2]
[391847164,1760911325891,500.0,0.00024072,2]
[391847165,1760911325922,500.0,0.00024072,2]
[391847166,1760911325952,500.0,0.00024072,2]
[391847167,1760911325985,500.0,0.00024072,2]
[391847168,1760911326021,500.0,0.00024072,2]
[391847169,1760911326052,500.0,0.00024072,2]
[391847170,1760911326087,500.0,0.00024072,2]
[391847171,1760911326125,500.0,0.00024072,2]
[391847172,1760911326178,281.93452286,0.00024072,2]
[391847173,1760911326205,218.06547714,0.00024072,2]
[391847174,1760911326236,500.0,0.00024072,2]
[391847175,1760911326270,500.0,0.00024072,2]
[391847176,1760911326299,500.0,0.00024072,2]
[391847177,1760911326329,500.0,0.00024072,2]
[391847178,1760911326363,313.1158986,0.00024072,2]
[391847179,1760911326392,500.0,0.00024072,2]
[391847180,1760911326450,500.0,0.00024072,2]
[391847181,1760911326558,500.0,0.00024072,2]
[391847182,1760911326704,500.0,0.00024072,2]
[391847183,1760911332063,205.58174859,0.00024072,2]
[391847184,1760911332175,283.00764665,0.00024072,2]
[391847185,1760911342572,4980.23922902,0.00024073,2]
[391847186,1760911342598,19.76077098,0.00024073,2]
[391847187,1760911350154,603.1,0.00021459,2]
[391847188,1760911350431,5000.0,0.00024073,2]
[391847189,1760911350545,1206.2,0.00022481,2]
[391847190,1760911350950,1809.3,0.00023503,2]
[391847191,1760911353091,1361.64922902,0.00019,10]
[391847192,1760911353118,638.35077098,0.00019,10]
[391847193,1760911356362,1200.0,0.00024072,2]
[391847194,1760911361268,579.35683372,0.00023973,2]
[391847195,1760911366672,5000.0,0.00024073,2]
[391847196,1760911370954,310.40664481,0.00023973,2]
[391847197,1760911382903,300.0,0.00024072,2]
[391847198,1760911389135,1971.89575049,0.00024073,2]
[391847199,1760911389164,3028.10424951,0.00024073,2]
[391847200,1760911397016,-9371.0890352,0.00024073,2]
[391847201,1760911397186,-10000.01,0.00024073,2]
[391847202,1760911399323,-10000.01,0.00024073,2]
[391847203,1760911399442,-10000.01,0.00024073,2]
[391847204,1760911402382,-1500.0,0.00024073,2]
[391847205,1760911402421,-7000.01,0.00024073,2]
[391847206,1760911402496,-10000.01,0.00024073,2]
[391847207,1760911408499,-10000.01,0.00024073,2]
[391847208,1760911408720,-10000.01,0.00024073,2]
[391847209,1760911408835,-10000.01,0.00024073,2]
[391847210,1760911408960,-10000.01,0.00024073,2]
[391847211,1760911409195,-10000.01,0.00024073,2]
[391847212,1760911409358,-1170.0655312,0.00024073,2]
[391847213,1760911409387,-150.0,0.00024073,2]
[391847214,1760911409415,-200.0,0.00024073,2]
[391847215,1760911409488,-6959.8789376,0.000241,7]
[391847216,1760911409527,-10000.01,0.000241,7]
[391847217,1760911409598,-10000.01,0.000241,7]
[391847218,1760911411756,5000.0,0.0002401,2]
[391847219,1760911413000,300.0,0.000235,2]
[391847220,1760911417458,-4700.01,0.000241,7]
[391847221,1760911417584,-10000.01,0.000241,7]
[391847222,1760911417698,-2478.9410624,0.000241,7]
[391847223,1760911417728,-402.86590842,0.000241,7]
[391847224,1760911417756,-423.97863795,0.000241,2]
[391847225,1760911421104,485.03082823,0.00024072,2]
[391847226,1760911424771,300.0,0.000235,2]
[391847227,1760911430472,606.62,0.0002157,2]
[391847228,1760911430889,1213.24,0.00022597,2]
[391847229,1760911431316,1819.86,0.00023624,2]
[391847230,1760911434428,5000.0,0.00024142,2]
[391847231,1760911437088,300.0,0.000235,2]
[391847232,1760911442209,275.25917177,0.00024142,2]
[391847233,1760911442311,4724.74082823,0.00024142,2]
[391847234,1760911450193,300.0,0.000235,2]
[391847235,1760911451588,300.0,0.00024072,2]
[391847236,1760911451619,500.0,0.00024072,2]
[391847237,1760911451649,500.0,0.00024072,2]
[391847238,1760911451678,500.0,0.00024072,2]
[391847239,1760911451706,237.45918802,0.00024072,2]
[391847240,1760911451762,182.54081198,0.00024072,2]
[391847241,1760911452411,286.51856848,0.00024072,2]
[391847242,1760911452441,163.45734977,0.00024072,2]
[391847243,1760911457683,2305.29325352,0.00024142,2]
[391847244,1760911457706,2694.70674648,0.00024142,2]
[391847245,1760911462065,300.0,0.000235,2]
[391847246,1760911462372,500.0,0.00024072,2]
[391847247,1760911462424,500.0,0.00024072,2]
[391847248,1760911462551,560.10545528,0.00024072,2]
[391847249,1760911465587,5000.0,0.00024142,2]
[391847250,1760911469364,300.0,0.000241,2]
[391847251,1760911473553,145.19779824,0.000235,2]
[391847252,1760911473576,154.80220176,0.000235,2]
[391847253,1760911473616,418.2827372,0.00024142,2]
[391847254,1760911481420,5000.0,0.00024142,2]
[391847255,1760911481973,300.0,0.000241,2]
[391847256,1760911487505,300.0,0.000235,2]
[391847257,1760911489440,3826.92506104,0.00024142,2]
[391847258,1760911489463,1173.07493896,0.00024142,2]
[391847259,1760911494860,300.0,0.000241,2]
[391847260,1760911497324,822.562232,0.00024142,2]
[391847261,1760911497352,196.0,0.00018,2]
[391847262,1760911497570,232.76320003,0.000181,2]
[391847263,1760911499341,300.0,0.000235,2]
[391847264,1760911505404,5000.0,0.00024142,2]
[391847265,1760911506519,300.0,0.000241,2]
[391847266,1760911513261,1675.60962901,0.00024142,2]
[391847267,1760911513288,2232.99912268,0.00024142,2]
[391847268,1760911516205,178.0,9.4e-07,2]
[391847269,1760911516825,174.897,0.00024016,2]
[391847270,1760911517559,178.0,9.4e-07,2]
[391847271,1760911518429,300.0,0.000241,2]
[391847272,1760911521343,1949.14083182,0.00024142,2]
[391847273,1760911524201,4986.9730455,0.0002407,2]
[391847274,1760911524227,7045.5450105,0.0002407,2]
[391847275,1760911529314,300.0,0.000137,2]
[391847276,1760911530296,2654.4649895,0.00024142,2]
[391847277,1760911530322,2345.5350105,0.00024142,2]
[391847278,1760911531060,300.0,0.000241,2]
[391847279,1760911544034,300.0,0.000137,2]
[391847280,1760911544612,7054.4749895,0.00023973,2]
[391847281,1760911544636,10000.01,0.00023973,2]
[391847282,1760911544660,10000.01,0.00023973,2]
[391847283,1760911544684,10000.01,0.00023973,2]
[391847284,1760911544707,10000.01,0.00023973,2]
[391847285,1760911544730,10000.01,0.00023973,2]
[391847286,1760911544754,10000.01,0.00023973,2]
[391847287,1760911544776,10000.01,0.00023973,2]
[391847288,1760911544799,10000.01,0.00023973,2]
[391847289,1760911544823,10000.01,0.00023973,2]
[391847290,1760911544847,3532.74362636,0.00023973,2]
[391847291,1760911544870,10000.0,0.00023973,2]
[391847292,1760911544893,10000.0,0.00023973,2]
[391847293,1760911544917,10000.0,0.00023973,2]
[391847294,1760911544939,10000.0,0.00023973,2]
[391847295,1760911544964,10000.0,0.00023973,2]
[391847296,1760911544992,10000.0,0.00023973,2]
[391847297,1760911545015,10000.0,0.00023973,2]
[391847298,1760911545038,10000.0,0.00023973,2]
[391847299,1760911545061,10000.0,0.00023973,2]
[391847300,1760911545085,10000.0,0.00023973,2]
[391847301,1760911545108,10000.0,0.00023973,2]
[391847302,1760911545131,10000.0,0.00023973,2]
[391847303,1760911545155,10000.0,0.00023973,2]
[391847304,1760911545179,10000.0,0.00023973,2]
[391847305,1760911545202,10000.0,0.00023973,2]
[391847306,1760911545226,10000.0,0.00023973,2]
[391847307,1760911545254,10000.0,0.00023973,2]
[391847308,1760911545280,10000.0,0.00023973,2]
[391847309,1760911545303,10000.0,0.00023973,2]
[391847310,1760911545327,10000.0,0.00023973,2]
[391847311,1760911545351,10000.0,0.00023973,2]
[391847312,1760911545373,10000.0,0.00023973,2]
[391847313,1760911545395,10000.0,0.00023973,2]
[391847314,1760911545418,10000.0,0.00023973,2]
[391847315,1760911545440,10000.0,0.00023973,2]
[391847316,1760911545463,10000.0,0.00023973,2]
[391847317,1760911545486,9412.69138414,0.00023973,2]
[391847318,1760911552576,506.93722954,0.00024072,2]
[391847319,1760911553169,5000.0,0.00024142,2]
[391847320,1760911556707,300.0,0.000137,2]
[391847321,1760911560962,5000.0,0.00024142,2]
[391847323,1760911568273,300.0,0.000137,2]
[391847324,1760911576734,287.30861586,0.0002401,2]
[391847325,1760911576759,4712.69138414,0.0002401,2]
[391847326,1760911584532,5000.0,0.0002401,2]
[391847327,1760911589447,287.30861586,0.000137,2]
[391847328,1760911589472,12.69138414,0.000137,2]
[391847329,1760911590242,946.8,0.00021402,2]
[391847330,1760911590667,1893.59,0.00022422,2]
[391847331,1760911591125,2840.39,0.00023441,2]
[391847332,1760911593157,4306.52861586,0.0002401,2]
[391847333,1760911593181,693.47138414,0.0002401,2]
[391847334,1760911601007,5000.0,0.0002401,2]
[391847335,1760911602325,300.0,0.000137,2]
[391847336,1760911608467,-1781.4,0.00024072,2]
[391847337,1760911608496,-1781.4,0.00024072,2]
[391847338,1760911608525,-1093.01,0.00024072,2]
[391847339,1760911609003,4006.52861586,0.0002401,2]
[391847340,1760911609026,993.47138414,0.0002401,2]
[391847341,1760911611491,-688.39,0.00024072,2]
[391847342,1760911611521,-1781.4,0.00024072,2]
[391847343,1760911611552,-1781.4,0.00024072,2]
[391847344,1760911614479,300.0,0.000137,2]
[391847345,1760911616839,678.7218585,0.0002401,2]
[391847346,1760911617459,-1781.4,0.00024072,2]
[391847347,1760911617488,-1781.4,0.00024072,2]
[391847348,1760911617517,-1093.01,0.00024072,2]
[391847349,1760911620500,-688.39,0.00024072,2]
[391847350,1760911620531,-1781.4,0.00024072,2]
[391847351,1760911620560,-1781.4,0.00024072,2]
[391847352,1760911623651,-300.0,0.00024071,2]
[391847353,1760911623682,-1781.4,0.00024072,2]
[391847354,1760911623714,-1781.4,0.00024072,2]
[391847355,1760911624906,2274.41,0.0002401,2]
[391847356,1760911624931,2725.59,0.0002401,2]
[391847357,1760911626052,300.0,0.000137,2]
[391847359,1760911632656,5000.0,0.0002401,2]